[Event "German Masters 2022"]
[Site "Magdeburg"]
[Date "2022.08.24"]
[Round "9.5"]
[White "Rosner, Jonas"]
[Black "Koelle, Tobias"]
[Result "1/2-1/2"]
[ECO "A46"]
[WhiteElo "2478"]
[BlackElo "2436"]
[Annotator "TA"]
[PlyCount "135"]
[EventDate "2022.08.16"]
[EventType "tourn"]
[EventCountry "GER"]
[SourceTitle "playchess.com"]
[Source "ChessBase"]
[SourceQuality "1"]
[TimeControl "40/5400+30:1800+30"]

{[%evp 12,134,14,10,6,-5,0,0,9,11,8,0,13,18,10,14,8,11,35,0,27,13,20,15,8,0,0,0,0,0,0,0,17,11,13,18,34,34,47,39,52,63,62,61,59,60,84,85,85,83,86,86,87,87,86,86,83,77,75,61,112,106,104,90,159,158,146,172,218,211,199,179,162,101,100,109,110,110,118,115,113,111,90,77,137,122,133,131,131,134,255,195,210,170,147,0,0,0,0,0,0,0,0,0,0,0,0,0,0,0,0,0,0,0,0,0,0,0,0,0,0,0,0,0,0]} 1. d4 {[%emt 0:00:03]} Nf6 {[%emt 0:00:04]} 2. Nf3 {[%emt 0:00:17]} d5 {[%emt 0:00:10]} 3. c4 {[%emt 0:00:06]} e6 {[%emt 0:00:17]} 4. e3 {[%emt 0:00:07]} b6 {[%emt 0:00:19]} 5. b3 {[%emt 0:00:22]} Bb7 {[%emt 0:00:06]} 6. Bd3 {[%emt 0:00:18]} Bd6 {[%emt 0:00:17]} 7. O-O {[%emt 0:00:28]} O-O {[%emt 0:00:17] E14: Queen's Indian: Classical Variation (4 e3).} 8. cxd5 $1 {[%emt 0:00:28][%mdl 4] outshines the older 8.Bb2.} exd5 {[%emt 0:00:02]} 9. Ba3 {[%emt 0:00:28]} c5 {[%emt 0:00:07]} 10. Nc3 {[%emt 0:01:31]} Nbd7 {[%emt 0:01:14][%cal Bb8d7,Bd7f6,Bf6e4][%mdl 32]} 11. Rc1 {[%emt 0:00:56]} Rc8 {[%emt 0:04:10]} 12. Qe2 {[%emt 0:07:57] [#]} Ne4 $146 {[%emt 0:08:02][%cal Oc5c4]} ({Predecessor:} 12... Re8 13. Na4 Ne4 14. Rfd1 c4 15. Bxe4 Bxa3 16. Bc2 Bxc1 17. Rxc1 b5 18. Nc5 Nxc5 19. dxc5 {0-1 (27) Kovalenko,I (2635)-Ganguly,S (2650) Chess.com INT 2018}) 13. Bb2 {[%emt 0:16:51]} Qe7 {[%emt 0:01:57]} 14. Rfd1 {[%emt 0:02:23]} Ndf6 {[%emt 0:02:48][%cal Oc5c4]} 15. h3 {[%emt 0:07:20]} Rfe8 {[%emt 0:04:25][%cal Oc5c4]} 16. Bb5 {[%emt 0:02:35]} Red8 {[%emt 0:01:09]} 17. dxc5 {[%emt 0:03:03]} bxc5 {[%emt 0:03:40]} 18. Nxe4 {[%emt 0:00:45]} Nxe4 {[%emt 0:01:18]} 19. Ba6 {[%emt 0:02:05]} Bxa6 {[%emt 0:07:34]} 20. Qxa6 {[%emt 0:00:04]} Qe6 {[%emt 0:00:31][%cal Od6h2] Hoping for ...Bh2+!} 21. Qe2 {[%emt 0:04:46]} ({Avoid the trap} 21. Qxa7 $2 Ra8 22. Qb7 Rxa2 $19) 21... Bb8 {[%emt 0:04:26]} 22. Rc2 {[%emt 0:14:36]} h6 {[%emt 0:15:00]} 23. Rdc1 {[%emt 0:03:11]} Qb6 {[%emt 0:05:12]} 24. Nd2 {[%emt 0:05:54]} Ng5 {[%emt 0:09:25]} 25. Qg4 {[%emt 0:05:52]} Ne6 {[%emt 0:01:04]} ({Weaker is} 25... Qd6 26. f4 Ne6 27. f5 $16) 26. Nf3 {[%emt 0:00:45][%cal Of3d4] Threatens to win with Nd4!} Bd6 {[%emt 0:06:40] [#]} 27. Nd4 $1 {[%emt 0:05:50] White is more active.} Bf8 {[%emt 0:02:35]} 28. Nxe6 {[%emt 0:00:47]} Qxe6 {[%emt 0:05:16]} 29. Qxe6 {[%emt 0:00:42]} fxe6 {[%emt 0:00:02] [#]} 30. Bd4 $1 {[%emt 0:00:37][%cal Rd4c5]} Rc7 {[%emt 0:01:47]} 31. Bxc5 {[%emt 0:00:46]} Rdc8 {[%emt 0:00:11][%cal Rc7c5]} 32. b4 {[%emt 0:00:20]} Kf7 {[%emt 0:03:28]} 33. Kf1 {[%emt 0:00:51]} a5 {[%emt 0:01:12]} 34. a3 {[%emt 0:00:16]} axb4 {[%emt 0:00:34]} 35. axb4 {[%emt 0:00:03]} e5 {[%emt 0:03:48]} ({Black should try} 35... Bxc5 $14 36. Rxc5 Rxc5 37. Rxc5 Rb8) 36. Ke2 $16 {[%emt 0:00:35]} Ke6 {[%emt 0:03:26]} 37. Kd2 {[%emt 0:05:14]} Bxc5 {[%emt 0:00:46]} (37... Rb7 $142) 38. Rxc5 {[%emt 0:01:00]} Rxc5 {[%emt 0:00:06]} 39. Rxc5 {[%emt 0:02:27][%mdl 4096] Endgame KR-KR} Ra8 {[%emt 0:04:23]} (39... Rb8 $142) 40. Rc6+ $18 {[%emt 0:02:05]} Kf5 {[%emt 0:01:38]} 41. Rc2 {[%emt 0:07:17]} Ke6 {[%emt 0:03:21]} 42. Kc3 {[%emt 0:04:03]} (42. b5 $18) 42... Kd6 $16 {[%emt 0:02:10]} 43. Kb3 {[%emt 0:00:33]} Ra1 {[%emt 0:00:36]} 44. Ra2 {[%emt 0:09:57]} Rb1+ {[%emt 0:01:04]} 45. Kc3 {[%emt 0:00:35]} Rc1+ {[%emt 0:01:07]} 46. Rc2 {[%emt 0:05:38]} Rb1 {[%emt 0:03:55]} 47. Rb2 {[%emt 0:01:03]} Rc1+ {[%emt 0:04:00]} (47... d4+ $142 48. exd4 exd4+ 49. Kb3 Rc1) 48. Kd3 {[%emt 0:00:29]} Rd1+ {[%emt 0:01:36] [#]} 49. Ke2 $1 {[%emt 0:00:27]} Ra1 {[%emt 0:01:11]} 50. b5 {[%emt 0:02:36] aiming for b6.} Ra7 {[%emt 0:01:07]} (50... Kc7 $16 {keeps fighting.}) 51. f4 {[%emt 0:01:07]} exf4 {[%emt 0:01:00]} 52. exf4 {[%emt 0:00:02] b6 is the strong threat.} Kc5 {[%emt 0:12:12] [#]} 53. b6 {[%emt 0:00:35]} (53. f5 $1 $16) 53... Rb7 $11 {[%emt 0:00:02] The position is equal.} 54. Kd3 {[%emt 0:00:12]} Rxb6 {[%emt 0:00:13]} 55. Rxb6 {[%emt 0:00:11]} Kxb6 {[%emt 0:00:02] K3P-K3P} 56. Kd4 {[%emt 0:00:16]} Kc6 {[%emt 0:00:01]} 57. f5 {[%emt 0:02:05] g4 would kill now.} Kd6 {[%emt 0:02:25]} 58. g3 {[%emt 0:02:10]} h5 {[%emt 0:02:57]} 59. g4 {[%emt 0:02:56]} hxg4 {[%emt 0:00:07]} 60. hxg4 {[%emt 0:00:01] Threatening mate with g5.} g6 {[%emt 0:00:14]} 61. fxg6 {[%emt 0:01:20] KPP-KP} Ke6 {[%emt 0:01:16]} 62. g5 {[%emt 0:00:21]} Ke7 {[%emt 0:00:03]} 63. Kxd5 {[%emt 0:00:14]} Kf8 {[%emt 0:00:03]} 64. Ke6 {[%emt 0:00:30]} Kg7 {[%emt 0:00:14]} 65. Kf5 {[%emt 0:00:05]} Kg8 $1 {[%emt 0:00:30]} 66. Kf6 {[%emt 0:00:15] White wants to mate with g7.} Kf8 {[%emt 0:00:06]} 67. g7+ {[%emt 0:00:04]} Kg8 {[%emt 0:00:03]} 68. g6 {Blacks defense is rewarded with a draw.  Weighted Error Value: White=0.09 (flawless) /Black=0.11 (very precise)} 1/2-1/2